fUST/lending_fUST_20251201
["ID","MTS","AMOUNT","RATE_DAILY","PERIOD"]
[395301670,1764599440533,-13146.03113357,0.00012883,2]
[395301927,1764599443364,-22.92358183,0.00012883,2]
[395301929,1764599443375,-906.0,0.00012883,2]
[395302193,1764599446386,-500.0,0.00012882,2]
[395302195,1764599446395,-200.0,0.00012882,2]
[395302196,1764599446406,-500.0,0.00012882,2]
[395302198,1764599446415,-2810.75735902,0.00012883,2]
[395302201,1764599446426,-5326.6533818,0.00012883,2]
[395302506,1764599735800,150.0,0.00019266,30]
[395302530,1764600303272,250.0,0.0002,30]
[395302565,1764600632335,-353.71323156,0.00011647,2]
[395302567,1764600632345,-245.0,0.00011647,2]
[395302569,1764600632354,-45.05817312,0.0001165,2]
[395302571,1764600632366,-116.16911215,0.0001165,2]
[395302573,1764600632375,-630.0,0.00011655,2]
[395302574,1764600632384,-990.0,0.00011655,2]
[395302575,1764600632396,-300.0,0.00011659,2]
[395302577,1764600632405,-8120.1288004,0.0001166,2]
[395302579,1764600632418,-633.44420249,0.0001166,2]
[395302582,1764600632434,-436.49295684,0.0001166,2]
[395302584,1764600632445,-2396.8897785,0.0001166,2]
[395302586,1764600632456,-789.89,0.0001166,2]
[395302725,1764600640535,-1818.82171577,0.0001166,2]
[395302727,1764600640545,-370.31018659,0.00011676,2]
[395302729,1764600640554,-500.0,0.00011676,2]
[395302731,1764600640563,-500.0,0.00011676,2]
[395302733,1764600640572,-605.62736892,0.00011676,2]
[395302735,1764600640582,-579.59564112,0.00011676,2]
[395302736,1764600640591,-500.0,0.00011676,2]
[395302738,1764600640601,-500.0,0.00011676,2]
[395302740,1764600640610,-500.0,0.00011676,2]
[395302742,1764600640618,-407.20646276,0.00011676,2]
[395302744,1764600640628,-500.0,0.00011676,2]
[395302746,1764600640637,-500.0,0.00011676,2]
[395302747,1764600640647,-500.0,0.00011676,2]
[395302748,1764600640657,-500.0,0.00011676,2]
[395302749,1764600640666,-224.98847859,0.00011676,2]
[395302750,1764600640675,-395.26036918,0.00011682,2]
[395302751,1764600640687,-603.73963082,0.00011682,2]
[395302752,1764600640696,-339.41,0.00012329,2]
[395302753,1764600640706,-339.41,0.00012329,2]
[395302754,1764600640715,-226.28,0.00012329,2]
[395302755,1764600640724,-188.56,0.00012329,2]
[395302756,1764600640733,-157.14,0.00012329,2]
[395302757,1764600640743,-785.71,0.00012329,2]
[395302758,1764600640752,-160.0,0.000124,2]
[395302759,1764600640762,-160.0,0.000126,2]
[395302760,1764600640771,-160.0,0.000126,2]
[395302761,1764600640780,-299.0227954,0.00012781,2]
[395302762,1764600640789,-500.0,0.00012782,2]
[395302763,1764600640799,-500.0,0.00012782,2]
[395302764,1764600640808,-500.0,0.00012782,2]
[395302765,1764600640818,-500.0,0.00012782,2]
[395302767,1764600640827,-500.0,0.00012782,2]
[395302769,1764600640837,-500.0,0.00012782,2]
[395302771,1764600640846,-500.0,0.00012782,2]
[395302773,1764600640855,-487.39242209,0.00012782,2]
[395302775,1764600640864,-500.0,0.00012782,2]
[395302777,1764600640873,-500.0,0.00012782,2]
[395302779,1764600640882,-600.0,0.00012782,2]
[395302781,1764600640891,-8288.93515169,0.00012783,2]
[395302783,1764600640907,-263.47373267,0.00012783,2]
[395302785,1764600640918,-499.99509108,0.00012783,2]
[395302787,1764600640929,-3182.9385977,0.00012783,2]
[395302790,1764600640940,-1563.20365362,0.00012783,2]
[395302792,1764600640951,-272.71,0.00012783,2]
[395302999,1764600643486,-235.45758798,0.00011676,2]
[395303001,1764600643497,-500.0,0.00011676,2]
[395303003,1764600643508,-105.88653505,0.00011676,2]
[395303005,1764600643519,-48.94550293,0.00011676,2]
[395303007,1764600643529,-500.0,0.00011676,2]
[395303009,1764600643538,-500.0,0.00011676,2]
[395303011,1764600643547,-524.89630734,0.00011676,2]
[395303013,1764600643556,-2272.61107956,0.00012783,2]
[395303015,1764600643566,-17459.16382567,0.00012783,2]
[395303017,1764600643577,-18578.79232766,0.00012783,2]
[395303077,1764600646596,-18324.66796984,0.00012783,2]
[395303078,1764600646725,-2265.9225486,0.00012783,2]
[395303079,1764600646737,-41307.12038512,0.00012783,2]
[395303080,1764600654627,-373.4,0.00018,14]
[395303081,1764600654657,-1626.6,0.0002,14]
[395303082,1764600654772,-27626.6,0.0002,20]
[395303083,1764600767804,373.4,0.0001695,14]
[395303084,1764600945658,26790.9,0.0002,30]
[395303086,1764601162239,3635.78405126,0.00021137,120]
[395303089,1764601250139,214.33677082,0.0001401,9]
[395303090,1764601263301,250.0,0.0002,30]
[395303111,1764601626145,-162.53176909,0.00011,2]
[395303113,1764601746130,-837.46823091,0.00011,2]
[395303114,1764601746151,-243.0,0.0001131,2]
[395303115,1764601746171,-158.00273957,0.00011382,2]
[395303116,1764601746191,-150.053,0.00011655,2]
[395303117,1764601746211,-150.16,0.00011655,2]
[395303118,1764601746231,-414.0,0.00011655,2]
[395303119,1764601746250,-169.21987274,0.00012,2]
[395303120,1764601750119,-861.78012726,0.00012,2]
[395303121,1764601776446,583.81358829,0.0002,30]
[395303122,1764601786887,500.0,0.0002,30]
[395303123,1764601798064,500.0,0.0002,30]
[395303124,1764601814732,1000.0,0.00012,2]
[395303133,1764601833863,205.93175927,0.00012,2]
[395303157,1764601838689,-601.06824073,0.00012,2]
[395303158,1764601838699,-353.71323156,0.00012487,2]
[395303159,1764601838709,-252.0,0.00012489,2]
[395303160,1764601838718,-154.84268478,0.00012508,2]
[395303161,1764601838727,-240.903,0.00012527,2]
[395303162,1764601838737,-151.0,0.00012681,2]
[395303163,1764601838746,-300.0,0.00012681,2]
[395303164,1764601838756,-500.0,0.00012682,2]
[395303165,1764601838765,-311.17469547,0.00012682,2]
[395303166,1764601838774,-500.0,0.00012682,2]
[395303167,1764601838784,-500.0,0.00012682,2]
[395303168,1764601838794,-500.0,0.00012682,2]
[395303169,1764601838807,-500.0,0.00012682,2]
[395303170,1764601838817,-500.0,0.00012682,2]
[395303171,1764601838826,-211.9118292,0.00012682,2]
[395303172,1764601838836,-527.76497621,0.00012682,2]
[395303173,1764601838846,-500.0,0.00012682,2]
[395303174,1764601838855,-251362.37510406,0.00012683,2]
[395303175,1764601838866,-46886.72774794,0.00012683,2]
[395303176,1764601838878,-752.73625706,0.00012683,2]
[395303177,1764601838947,-6.54792,0.00012683,2]
[395303222,1764601840770,-23817.0614023,0.00012683,2]
[395303224,1764601840781,-630.0,0.00012683,2]
[395303226,1764601840792,-3079.28350416,0.00012683,2]
[395303229,1764601840815,-439.31,0.00012683,2]
[395303494,1764601843743,-779.33406792,0.00012683,2]
[395303669,1764601846689,-23936.89323753,0.00012683,2]
[395303670,1764601846701,-15870.55809549,0.00012683,2]
[395303671,1764601846713,-17193.07664279,0.00012683,2]
[395305292,1764602222930,250.0,0.0002,30]
[395305309,1764602847140,-217.47206117,0.0001104,2]
[395305310,1764602847162,-160.65994272,0.00011096,2]
[395305311,1764602847185,-217.47206117,0.00011152,2]
[395305312,1764602847205,-243.0,0.00011379,2]
[395305313,1764602847225,-302.33252052,0.0001161,2]
[395305314,1764602952113,-164.0671684,0.00011494,2]
[395305315,1764602953115,-73.2886737,0.00011494,2]
[395305316,1764602953137,-353.71323156,0.0001182,2]
[395305317,1764602953163,-414.0,0.00011828,2]
[395305318,1764602953188,-300.0,0.00011998,2]
[395305319,1764602953208,-500.0,0.00011999,2]
[395305320,1764602953232,-500.0,0.00011999,2]
[395305321,1764602953253,-434.56644909,0.00011999,2]
[395305322,1764602953274,-500.0,0.00011999,2]
[395305323,1764602953296,-500.0,0.00011999,2]
[395305324,1764602953317,-621.73594008,0.00011999,2]
[395305325,1764602953337,-500.0,0.00011999,2]
[395305326,1764602953358,-500.0,0.00011999,2]
[395305327,1764602953377,-59574.85209017,0.00012,2]
[395305328,1764602974098,-490.0,0.00012,2]
[395305401,1764603038096,-363.36002215,0.000119,2]
[395305402,1764603038106,-880.93790983,0.00012,2]
[395305403,1764603038116,-248.0,0.00012,2]
[395305404,1764603038125,-225.502,0.00012331,2]
[395305405,1764603038134,-206.75210398,0.00012389,2]
[395305406,1764603038144,-259.0,0.00012582,2]
[395305407,1764603038153,-300.0,0.00012582,2]
[395305408,1764603038164,-300.0,0.00012582,2]
[395305409,1764603038174,-328.0,0.00012582,2]
[395305410,1764603038184,-500.0,0.00012582,2]
[395305411,1764603038193,-404.19651436,0.00012582,2]
[395305412,1764603038202,-218.3304468,0.00012582,2]
[395305413,1764603038214,-281.6695532,0.00012582,2]
[395305414,1764603038223,-500.0,0.00012582,2]
[395305415,1764603038233,-500.0,0.00012582,2]
[395305416,1764603038243,-14208.04264838,0.00012583,2]
[395305701,1764603046013,-108481.45703419,0.00012583,2]
[395305702,1764603046185,-43.30416007,0.00012583,2]
[395305703,1764603046197,-2772.00000009,0.00012583,2]
[395305705,1764603149795,3175.22,8.564e-05,2]
[395305706,1764603183004,250.0,0.0002,30]
[395305708,1764603239139,5249.27910124,0.0002,30]
[395305709,1764603289148,5000.0,0.0002,30]
[395305711,1764603711664,1753.0,0.0002,30]
[395305712,1764603887952,306.95766556,0.0002,30]
[395305713,1764603952175,-232.93343818,9.104e-05,2]
[395305714,1764603952198,-161.62394722,0.00010547,2]
[395305715,1764603952221,-414.0,0.0001199,2]
[395305716,1764603952243,-250.0,0.00012,2]
[395305717,1764603952267,-180.401,0.00012233,2]
[395305718,1764603952294,-620.04885361,0.000124,2]
[395305719,1764603952316,-300.0,0.00012481,2]
[395305720,1764603952339,-500.0,0.00012482,2]
[395305721,1764603952361,-500.0,0.00012482,2]
[395305722,1764603952382,-369.65847363,0.00012482,2]
[395305723,1764603952405,-500.0,0.00012482,2]
[395305724,1764603952430,-446.41396321,0.00012482,2]
[395305725,1764603952458,-122923.77392615,0.00012483,2]
[395305728,1764604148520,250.0,0.0002,30]
[395305729,1764604154098,-633.4442024,0.00011218,2]
[395305730,1764604154122,-151.0,0.000115,2]
[395305731,1764604154148,-158.39146828,0.0001165,2]
[395305732,1764604154170,-151.0,0.000118,2]
[395305733,1764604154194,-414.0,0.0001199,2]
[395305734,1764604154219,-127.59617054,0.000121,2]
[395305813,1764604232161,-3439.72098641,0.00012,2]
[395305816,1764604232171,-23.40382946,0.000121,2]
[395305818,1764604232183,-151.0,0.000123,2]
[395305820,1764604232193,-4847.27518413,0.00012483,2]
[395305846,1764604238155,-762228.95088972,0.00012483,2]
[395305847,1764604238165,-2330.2923516,0.000125,2]
[395305848,1764604238175,-23862.1434296,0.000125,2]
[395305849,1764604238189,-353.71323156,0.00012546,2]
[395305850,1764604238200,-151.0,0.000126,2]
[395305851,1764604238210,-231.28369723,0.00012602,2]
[395305852,1764604238220,-327.48221305,0.00012602,2]
[395305853,1764604238230,-1000.0,0.00012683,2]
[395305854,1764604238240,-1000.0,0.00012683,2]
[395305855,1764604238250,-1000.0,0.00012683,2]
[395305856,1764604238260,-1000.0,0.00012683,2]
[395305857,1764604238269,-1000.0,0.00012683,2]
[395305858,1764604238279,-1000.0,0.00012683,2]
[395305859,1764604238289,-1000.0,0.00012683,2]
[395305860,1764604238299,-1000.0,0.00012683,2]
[395305861,1764604238308,-1000.0,0.00012683,2]
[395305862,1764604238319,-1000.0,0.00012683,2]
[395305863,1764604238328,-300.0,0.00012731,2]
[395305864,1764604238338,-300.0,0.00012731,2]
[395305865,1764604238348,-300.0,0.00012731,2]
[395305866,1764604238357,-300.0,0.00012731,2]
[395305867,1764604238367,-300.0,0.00012731,2]
[395305868,1764604238377,-300.0,0.00012731,2]
[395305869,1764604238387,-300.0,0.00012731,2]
[395305870,1764604238397,-300.0,0.00012731,2]
[395305871,1764604238407,-300.0,0.00012731,2]
[395305872,1764604238417,-300.0,0.00012731,2]
[395305873,1764604238428,-300.0,0.00012731,2]
[395305874,1764604238441,-300.0,0.00012731,2]
[395305875,1764604238451,-300.0,0.00012731,2]
[395305876,1764604238461,-300.0,0.00012731,2]
[395305877,1764604238471,-300.0,0.00012731,2]
[395305878,1764604238481,-600.0,0.00012732,2]
[395305879,1764604238491,-193.39834902,0.00012782,2]
[395305880,1764604238501,-151.0,0.000129,2]
[395305881,1764604238510,-937.0,0.00012916,2]
[395305882,1764604238520,-1000.0,0.00013,2]
[395305883,1764604238530,-937.0,0.00013051,2]
[395305884,1764604238541,-937.0,0.00013067,2]
[395305885,1764604238551,-937.0,0.00013078,2]
[395305886,1764604238564,-239.84119403,0.0001315,2]
[395305887,1764604238573,-937.0,0.00013194,2]
[395305888,1764604238584,-151.0,0.000132,2]
[395305889,1764604238593,-937.0,0.00013213,2]
[395305890,1764604238603,-937.0,0.00013244,2]
[395305891,1764604238613,-500.0,0.00013273,2]
[395305892,1764604238623,-500.0,0.00013273,2]
[395305893,1764604238634,-455.95801729,0.00013273,2]
[395305894,1764604238643,-500.0,0.00013273,2]
[395305895,1764604238653,-500.0,0.00013273,2]
[395305896,1764604238662,-500.0,0.00013273,2]
[395305897,1764604238672,-500.0,0.00013273,2]
[395305898,1764604238682,-526.54341335,0.00013273,2]
[395305899,1764604238692,-500.0,0.00013273,2]
[395305900,1764604238701,-158.7193827,0.00013273,2]
[395305901,1764604238710,-500.0,0.00013273,2]
[395305902,1764604238720,-500.0,0.00013273,2]
[395305903,1764604238730,-500.0,0.00013273,2]
[395305904,1764604238739,-500.0,0.00013273,2]
[395305905,1764604238749,-196.59835729,0.00013273,2]
[395305906,1764604238759,-151.0,0.000134,2]
[395305907,1764604238769,-500.0,0.0001341,2]
[395305908,1764604238779,-937.0,0.00013455,2]
[395305909,1764604238789,-937.0,0.00013465,2]
[395305910,1764604238799,-937.0,0.00013504,2]
[395305911,1764604238809,-152.683969,0.00013504,2]
[395305912,1764604238819,-298.615588,0.00013504,2]
[395305913,1764604238828,-151.0,0.00013504,2]
[395305914,1764604238838,-151.0,0.00013504,2]
[395305915,1764604238848,-151.0,0.00013504,2]
[395305916,1764604238859,-151.0,0.00013504,2]
[395305917,1764604238869,-937.0,0.00013532,2]
[395305918,1764604238879,-500.0,0.00013547,2]
[395305919,1764604238889,-937.0,0.00013567,2]
[395305920,1764604238899,-160.0,0.000136,2]
[395305921,1764604238910,-151.0,0.000136,2]
[395305922,1764604238920,-186.90193257,0.0001365,2]
[395305923,1764604238930,-500.0,0.00013684,2]
[395305924,1764604238942,-151.0,0.00013698,2]
[395305925,1764604238952,-151.0,0.00013698,2]
[395305926,1764604238962,-151.0,0.00013698,2]
[395305927,1764604238972,-151.0,0.00013698,2]
[395305928,1764604238982,-151.0,0.00013698,2]
[395305929,1764604238991,-151.0,0.00013698,2]
[395305930,1764604239001,-151.0,0.00013698,2]
[395305931,1764604239011,-151.0,0.00013698,2]
[395305932,1764604239021,-151.0,0.00013698,2]
[395305933,1764604239030,-151.0,0.00013698,2]
[395305934,1764604239039,-151.0,0.00013698,2]
[395305935,1764604239050,-151.0,0.00013698,2]
[395305936,1764604239060,-151.0,0.00013698,2]
[395305937,1764604239069,-151.0,0.00013698,2]
[395305938,1764604239079,-151.0,0.00013698,2]
[395305939,1764604239093,-151.0,0.00013698,2]
[395305940,1764604239105,-151.0,0.00013698,2]
[395305941,1764604239114,-151.0,0.00013698,2]
[395305942,1764604239123,-151.0,0.00013698,2]
[395305943,1764604239132,-151.0,0.00013698,2]
[395305944,1764604239141,-151.0,0.00013698,2]
[395305945,1764604239151,-151.0,0.00013698,2]
[395305946,1764604239160,-281.078996,0.00013698,2]
[395305947,1764604239169,-175.604555,0.00013698,2]
[395305948,1764604239178,-175.604555,0.00013698,2]
[395305949,1764604239192,-175.604555,0.00013698,2]
[395305950,1764604239201,-175.604555,0.00013698,2]
[395305951,1764604239211,-175.604555,0.00013698,2]
[395305952,1764604239220,-175.604555,0.00013698,2]
[395305953,1764604239229,-175.604555,0.00013698,2]
[395305954,1764604239238,-175.604555,0.00013698,2]
[395305955,1764604239248,-175.604555,0.00013698,2]
[395305956,1764604239259,-175.604555,0.00013698,2]
[395305957,1764604239268,-175.604555,0.00013698,2]
[395305958,1764604239278,-175.604555,0.00013698,2]
[395305959,1764604239288,-175.604555,0.00013698,2]
[395305960,1764604239297,-175.604555,0.00013698,2]
[395305961,1764604239307,-175.604555,0.00013698,2]
[395305962,1764604239317,-175.604555,0.00013698,2]
[395305963,1764604239327,-175.604555,0.00013698,2]
[395305964,1764604239336,-175.604555,0.00013698,2]
[395305965,1764604239345,-175.604555,0.00013698,2]
[395305966,1764604239355,-175.604559,0.00013698,2]
[395305967,1764604239364,-151.0,0.00013698,2]
[395305968,1764604239374,-151.0,0.00013698,2]
[395305969,1764604239383,-151.0,0.00013698,2]
[395305970,1764604239392,-151.0,0.00013698,2]
[395305971,1764604239402,-151.0,0.00013698,2]
[395305972,1764604239411,-151.0,0.00013698,2]
[395305973,1764604239420,-151.0,0.00013698,2]
[395305974,1764604239430,-151.0,0.00013698,2]
[395305975,1764604239443,-190.962585,0.00013698,2]
[395305976,1764604239453,-151.0,0.00013698,2]
[395305977,1764604239463,-151.0,0.00013698,2]
[395305978,1764604239473,-151.0,0.00013698,2]
[395305979,1764604239484,-151.0,0.00013698,2]
[395305980,1764604239493,-151.0,0.00013698,2]
[395305981,1764604239502,-151.0,0.00013698,2]
[395305982,1764604239512,-151.0,0.00013698,2]
[395305983,1764604239521,-179.42113662,0.00013698,2]
[395305984,1764604239530,-151.0,0.00013698,2]
[395305985,1764604239543,-151.0,0.00013698,2]
[395305986,1764604239553,-151.0,0.00013698,2]
[395305987,1764604239562,-151.0,0.00013698,2]
[395305988,1764604239572,-151.0,0.00013698,2]
[395305989,1764604239581,-151.0,0.00013698,2]
[395305990,1764604239591,-185.610818,0.00013698,2]
[395305991,1764604239600,-151.0,0.00013698,2]
[395305992,1764604239609,-151.0,0.00013698,2]
[395305993,1764604239619,-151.0,0.00013698,2]
[395305994,1764604239628,-151.0,0.00013698,2]
[395305995,1764604239638,-151.0,0.00013698,2]
[395305996,1764604239648,-151.0,0.00013698,2]
[395305997,1764604239658,-151.0,0.00013698,2]
[395305999,1764604239668,-151.0,0.00013698,2]
[395306000,1764604239678,-151.0,0.00013698,2]
[395306001,1764604239690,-151.0,0.00013698,2]
[395306002,1764604239701,-151.0,0.00013698,2]
[395306003,1764604239711,-151.0,0.00013698,2]
[395306004,1764604239721,-151.0,0.00013698,2]
[395306005,1764604239731,-151.0,0.00013698,2]
[395306006,1764604239742,-151.0,0.00013698,2]
[395306007,1764604239751,-269.616325,0.00013698,2]
[395306008,1764604239761,-232.243201,0.00013698,2]
[395306009,1764604239771,-232.243201,0.00013698,2]
[395306010,1764604239781,-232.243201,0.00013698,2]
[395306011,1764604239790,-232.243201,0.00013698,2]
[395306014,1764604239799,-232.243201,0.00013698,2]
[395306018,1764604239809,-232.243201,0.00013698,2]
[395306021,1764604239819,-232.243201,0.00013698,2]
[395306023,1764604239829,-232.243201,0.00013698,2]
[395306025,1764604239838,-232.243201,0.00013698,2]
[395306027,1764604239848,-232.243201,0.00013698,2]
[395306029,1764604239857,-232.243201,0.00013698,2]
[395306031,1764604239867,-232.243201,0.00013698,2]
[395306033,1764604239876,-232.243201,0.00013698,2]
[395306035,1764604239886,-151.0,0.00013698,2]
[395306037,1764604239896,-232.243201,0.00013698,2]
[395306039,1764604239906,-151.0,0.00013698,2]
[395306041,1764604239915,-232.243201,0.00013698,2]
[395306043,1764604239925,-151.0,0.00013698,2]
[395306045,1764604239938,-151.0,0.00013698,2]
[395306047,1764604239948,-232.243201,0.00013698,2]
[395306049,1764604239957,-151.0,0.00013698,2]
[395306051,1764604239968,-232.243201,0.00013698,2]
[395306053,1764604239978,-276.420684,0.00013698,2]
[395306055,1764604239987,-232.243201,0.00013698,2]
[395306057,1764604239997,-232.243201,0.00013698,2]
[395306059,1764604240006,-232.243197,0.00013698,2]
[395306061,1764604240016,-151.0,0.00013698,2]
[395306063,1764604240027,-227.03777,0.00013698,2]
[395306065,1764604240037,-151.0,0.00013698,2]
[395306067,1764604240047,-158.391824,0.00013698,2]
[395306069,1764604240057,-151.0,0.00013698,2]
[395306071,1764604240068,-151.538717,0.00013698,2]
[395306073,1764604240078,-998.73,0.00013698,2]
[395306075,1764604240087,-998.73,0.00013698,2]
[395306077,1764604240098,-998.73,0.00013698,2]
[395306079,1764604240107,-998.73,0.00013698,2]
[395306081,1764604240117,-998.73,0.00013698,2]
[395306083,1764604240126,-998.73,0.00013698,2]
[395306085,1764604240135,-998.73,0.00013698,2]
[395306087,1764604240145,-998.73,0.00013698,2]
[395306089,1764604240154,-998.73,0.00013698,2]
[395306091,1764604240164,-998.73,0.00013698,2]
[395306092,1764604240173,-998.73,0.00013698,2]
[395306094,1764604240186,-998.73,0.00013698,2]
[395306096,1764604240196,-998.73,0.00013698,2]
[395306098,1764604240205,-998.73,0.00013698,2]
[395306100,1764604240214,-998.73,0.00013698,2]
[395306102,1764604240223,-998.73,0.00013698,2]
[395306104,1764604240232,-998.73,0.00013698,2]
[395306105,1764604240241,-998.73,0.00013698,2]
[395306107,1764604240251,-998.73,0.00013698,2]
[395306109,1764604240260,-998.73,0.00013698,2]
[395306111,1764604240270,-998.73,0.00013698,2]
[395306113,1764604240279,-998.73,0.00013698,2]
[395306115,1764604240288,-998.73,0.00013698,2]
[395306117,1764604240298,-998.96166872,0.00013698,2]
[395306119,1764604240307,-175.35049,0.00013698,2]
[395306121,1764604240316,-175.35049,0.00013698,2]
[395306123,1764604240326,-175.35049,0.00013698,2]
[395306125,1764604240335,-175.35049,0.00013698,2]
[395306127,1764604240344,-175.35049,0.00013698,2]
[395306129,1764604240353,-175.35049,0.00013698,2]
[395306131,1764604240363,-175.35049,0.00013698,2]
[395306132,1764604240372,-175.35049,0.00013698,2]
[395306134,1764604240381,-175.35049,0.00013698,2]
[395306136,1764604240390,-175.35049,0.00013698,2]
[395306138,1764604240400,-175.35049,0.00013698,2]
[395306139,1764604240408,-175.35049,0.00013698,2]
[395306140,1764604240418,-175.35049,0.00013698,2]
[395306141,1764604240427,-175.35049,0.00013698,2]
[395306142,1764604240438,-175.35049,0.00013698,2]
[395306143,1764604240447,-175.35049,0.00013698,2]
[395306144,1764604240457,-175.35049,0.00013698,2]
[395306145,1764604240466,-175.35049,0.00013698,2]
[395306146,1764604240475,-175.35049,0.00013698,2]
[395306147,1764604240484,-175.350498,0.00013698,2]
[395306148,1764604240494,-151.0,0.00013698,2]
[395306149,1764604240503,-151.0,0.00013698,2]
[395306150,1764604240513,-151.0,0.00013698,2]
[395306151,1764604240524,-151.0,0.00013698,2]
[395306152,1764604240533,-151.0,0.00013698,2]
[395306153,1764604240543,-151.0,0.00013698,2]
[395306154,1764604240553,-1000.0,0.00013698,2]
[395306155,1764604240566,-1000.0,0.00013698,2]
[395306156,1764604240576,-1000.0,0.00013698,2]
[395306157,1764604240585,-1000.0,0.00013698,2]
[395306158,1764604240595,-1128.31939664,0.00013698,2]
[395306160,1764604240606,-395.308721,0.00013698,2]
[395306161,1764604240616,-395.308721,0.00013698,2]
[395306162,1764604240626,-395.308721,0.00013698,2]
[395306163,1764604240636,-395.308721,0.00013698,2]
[395306164,1764604240645,-395.308721,0.00013698,2]
[395306165,1764604240655,-395.308721,0.00013698,2]
[395306166,1764604240665,-395.308721,0.00013698,2]
[395306167,1764604240675,-395.308721,0.00013698,2]
[395306168,1764604240685,-395.308721,0.00013698,2]
[395306169,1764604240695,-395.308721,0.00013698,2]
[395306170,1764604240705,-395.308721,0.00013698,2]
[395306171,1764604240715,-395.308721,0.00013698,2]
[395306172,1764604240725,-395.308721,0.00013698,2]
[395306173,1764604240734,-395.308721,0.00013698,2]
[395306174,1764604240744,-395.308721,0.00013698,2]
[395306175,1764604240754,-395.308721,0.00013698,2]
[395306176,1764604240764,-395.308721,0.00013698,2]
[395306177,1764604240774,-395.308721,0.00013698,2]
[395306178,1764604240783,-395.308721,0.00013698,2]
[395306179,1764604240793,-395.308721,0.00013698,2]
[395306180,1764604240803,-151.0,0.00013698,2]
[395306181,1764604240812,-151.0,0.00013698,2]
[395306194,1764604241046,-151.0,0.00013698,2]
[395306196,1764604241060,-151.0,0.00013698,2]
[395306198,1764604241070,-151.0,0.00013698,2]
[395306200,1764604241079,-151.0,0.00013698,2]
[395306202,1764604241088,-151.0,0.00013698,2]
[395306203,1764604241098,-151.0,0.00013698,2]
[395306205,1764604241107,-151.0,0.00013698,2]
[395306207,1764604241117,-151.0,0.00013698,2]
[395306209,1764604241131,-151.0,0.00013698,2]
[395306211,1764604241140,-198.467448,0.00013698,2]
[395306213,1764604241150,-151.0,0.00013698,2]
[395306215,1764604241160,-151.0,0.00013698,2]
[395306217,1764604241170,-151.0,0.00013698,2]
[395306219,1764604241179,-151.0,0.00013698,2]
[395306221,1764604241191,-151.0,0.00013698,2]
[395306223,1764604241201,-151.0,0.00013698,2]
[395306225,1764604241210,-151.0,0.00013698,2]
[395306227,1764604241220,-151.0,0.00013698,2]
[395306229,1764604241229,-151.0,0.00013698,2]
[395306231,1764604241238,-151.0,0.00013698,2]
[395306233,1764604241247,-151.0,0.00013698,2]
[395306235,1764604241256,-151.0,0.00013698,2]
[395306236,1764604241265,-151.0,0.00013698,2]
[395306238,1764604241275,-272.50444,0.00013698,2]
[395306240,1764604241284,-907.817813,0.00013698,2]
[395306242,1764604241294,-907.817813,0.00013698,2]
[395306244,1764604241303,-907.817813,0.00013698,2]
[395306246,1764604241312,-907.817813,0.00013698,2]
[395306248,1764604241322,-907.817813,0.00013698,2]
[395306250,1764604241332,-907.817813,0.00013698,2]